Cogmind - Beta 14 @@@ ROGUE MODE // 2024.08.11 @ 03:43:56 Player: Lord_Devi Result: Destroyed by YI-UF0 with YI-UF0's Doublenader Performance ------------- Evolutions (0) 0 Regions Visited (2) 400 Robots Destroyed (23) 115 Value Destroyed (536) 536 Prototype IDs (2) 40 Alien Tech Used (0) 0 Bonus (0) 0 TOTAL SCORE: 1091 Bonus ------- None Cogmind --------- Core Integrity 0/250 Matter 205/300 Energy 14/100 System Corruption 2% Temperature Cool (49) Movement Core (450) Ox8 Location -10/Mines Parts ------- > --- POWER (1) -------- (None) > --- PROPULSION (2) --- (None) > --- UTILITY (2) ------ Large Storage Unit Seismic Detector (fused) > --- WEAPON (2) ------- Medium Laser Assault Rifle > --- INVENTORY (15) --- Small Storage Unit Medium Storage Unit Medium Laser Medium Laser Small Laser Small Laser Peak State ------------ > --- POWER ------------ Ion Engine > --- PROPULSION ------- Light Treads Light Treads > --- UTILITY ---------- Medium Storage Unit Targeting Computer > --- WEAPON ----------- EM Pulse Gun EM Pulse Gun > --- INVENTORY -------- Light Ion Engine Small Storage Unit Medium Laser Medium Laser Medium Laser Medium Laser Small Laser Small Laser Assault Rifle Grenade Launcher [Rating: 8] Favorites ----------- Power Light Ion Engine Engine Light Ion Engine Propulsion Light Treads Treads Light Treads Utility Medium Storage Unit Device Seismic Detector Storage Medium Storage Unit Processor Targeting Computer Weapon EM Pulse Gun Energy Gun EM Pulse Gun Ballistic Gun Light Assault Rifle Launcher Grenade Launcher Build | -11 -10 -10 ------- Run | Yrd Mat Min Slots Evolved . | . . . Power . | . . . Propulsion . | . . . Utility . | . . . Weapon . | . . . Parts Attached 28 | 6 16 6 Power 3 | 1 2 . Engine 3 | 1 2 . Core . | . . . Reactor . | . . . Propulsion 6 | 2 4 . Treads 6 | 2 4 . Leg . | . . . Wheel . | . . . Hover . | . . . Flight . | . . . Utility 5 | 1 4 . Device 1 | . 1 . Storage 3 | 1 2 . Processor 1 | . 1 . Hackware . | . . . Protection . | . . . Artifact . | . . . Weapon 14 | 2 6 6 Energy Gun 10 | 1 6 3 Energy Cannon . | . . . Ballistic Gun 3 | 1 . 2 Ballistic Cannon . | . . . Launcher 1 | . . 1 Special Weapon . | . . . Impact Weapon . | . . . Slashing Weapon . | . . . Piercing Weapon . | . . . Special Melee Weapon . | . . . Unidentified Prototypes . | . . . Parts Lost 9 | . 2 7 Power 2 | . 1 1 Propulsion 2 | . . 2 Utility . | . . . Weapon 5 | . 1 4 Highest Loss Streak 6 | . 2 6 To Critical Strikes . | . . . Average Slot Usage (%) 94 | . 93 95 Engine 13 | . 13 12 Treads 25 | . 25 26 Device 4 | . 3 14 Storage 14 | . 14 14 Processor 6 | . 7 . Energy Gun 23 | . 24 22 Ballistic Gun 3 | . 3 3 Peak Build Rating 8 | 6 8 8 Average Rating 6 | 4 6 7 On Entrance 4 | . 6 8 Naked Turns . | . . . Heaviest Build 29 | 10 28 29 Greatest Support 40 | 40 40 40 Greatest Overweight (x) 5 | . 5 . Average Overweight (x) . | . . . Largest Inventory Capacity 15 | 8 15 15 Average Capacity 10 | 6 10 15 Most Carried 10 | 3 10 10 Average Carried 7 | 1 7 9 Final Capacity 15 | 8 15 15 Final Carried 10 | 2 10 6 Class Distribution -------------------- 100% | Mutant Dominant Class ---------------- Mutant | -10/Materials Mutant | -10/Mines Resources | -11 -10 -10 ----------- Run | Yrd Mat Min Matter Collected 464 | 237 156 71 Remotely . | . . . Salvage Created 839 | . 759 80 Parts 39 | . 35 4 Haulers Intercepted 1 | . 1 . Recyclers Shooed . | . . . Parts Field Recycled . | . . . Retrieved Matter . | . . . Parts Self-Destructed . | . . . Prevented . | . . . Kills | -11 -10 -10 ------- Run | Yrd Mat Min Combat Hostiles Destroyed 18 | . 16 2 Guns 13 | . 11 2 AOE 5 | . 5 . Classes Destroyed 5 | . 5 . Hauler 1 | . 1 . Recycler 1 | . 1 . Watcher 3 | . 3 . Swarmer 7 | . 6 1 Grunt 11 | . 10 1 Best Kill Streak 7 | . 7 2 Combat Bots Only 5 | . 5 2 Max Kills in Single Turn 2 | . 2 1 Gunslinging . | . . . Exploded 2 | . 2 . Melee . | . . . Uniques/NPCs Destroyed . | . . . Combat | -11 -10 -10 -------- Run | Yrd Mat Min Hostile Shots Fired 93 | . 56 37 Missed 23 | . 13 10 Damage Taken 1261 | . 567 694 Core 260 | . 100 160 Absorbed by Shields . | . . . Regen/Repaired (Parts) 212 | . 212 . Core Remaining (%) 100 | 100 . . Volleys Fired 76 | . 59 17 Largest 2 | . 2 2 Hottest 100 | . 90 100 Shots Fired 150 | . 118 32 Gun 143 | . 118 25 Cannon . | . . . Launcher 7 | . . 7 Special . | . . . Kinetic 38 | . 35 3 Thermal 25 | . 14 11 Explosive 7 | . . 7 Electromagnetic 80 | . 69 11 Robot Hit Streak 10 | . 10 9 Robot Miss Streak 4 | . 4 3 Penetration Max . | . . . Secondary Targets 1 | . 1 . Max Gunslinging Chain 1 | . 1 . Shots Hit Robots 103 | . 81 22 Core Hits 45 | . 36 9 Critical Kills . | . . . Critical Parts Destroyed . | . . . Critical Strikes 5 | . 5 . Burn 4 | . 4 . Corrupt 1 | . 1 . Melee Attacks . | . . . Impact . | . . . Slashing . | . . . Piercing . | . . . Sneak Attacks . | . . . Combat Hostiles . | . . . Follow-up Attacks . | . . . Damage Inflicted 1608 | . 1351 257 Guns 1254 | . 1043 211 Cannons . | . . . Explosions 354 | . 308 46 Melee . | . . . Ramming . | . . . Kinetic 183 | . 159 24 Thermal 548 | . 435 113 Explosive 46 | . . 46 Electromagnetic 831 | . 757 74 Impact . | . . . Slashing . | . . . Piercing . | . . . Highest Corruption 2 | . 2 2 Average Corruption 2 | . 2 2 Corruption Purged . | . . . Corruption Blocked . | . . . Effects 4 | . 1 3 Message Errors 2 | . . 2 Parts Fused 1 | . . 1 Alerts 1 | . 1 . Overload Shots . | . . . Overflow Damage . | . . . Projectiles . | . . . Explosions . | . . . Melee . | . . . Knockbacks . | . . . Impact . | . . . Kinetic . | . . . Secondary . | . . . Self-Inflicted Damage 115 | . 115 . Shots 3 | . 3 . Rammed . | . . . Targets Rammed . | . . . Kicked . | . . . Crushed . | . . . Highest Temperature 269 | . 269 61 Average Temperature 55 | . 63 25 Received Heat Transfer 246 | . 195 51 Siege Activations . | . . . Robots Corrupted . | . . . Combat Hostiles . | . . . Parts Fried 6 | . 6 . Impact Corruptions . | . . . Robots Melted . | . . . Combat Hostiles . | . . . Parts Melted 7 | . 7 . Heat Transferred 1349 | . 1016 333 Parts Sabotaged . | . . . Parts Stolen . | . . . Parts Stripped . | . . . Power Chain Reactions 4 | . 4 . Alert | -11 -10 -10 ------- Run | Yrd Mat Min Peak Influence 231 | . 231 97 Initial 1 | . . 1 Average 83 | . 94 37 Maximum Alert Level 1 | . 1 . Low Security (%) 98 | 100 98 100 Level 1 1 | . 1 . Level 2 . | . . . Level 3 . | . . . Level 4 . | . . . Level 5 . | . . . High Security . | . . . Max Security . | . . . Squads Dispatched 4 | . 4 . Investigation 3 | . 3 . Extermination . | . . . Reinforcement 1 | . 1 . Assault . | . . . Garrison . | . . . Intercept . | . . . Searches Triggered . | . . . Construction Impeded . | . . . Haulers Reinforced . | . . . Active Scanning Responses . | . . . Cargo Convoy Interrupts . | . . . Stealth | -11 -10 -10 --------- Run | Yrd Mat Min Distress Signals 1 | . 1 . Communications Jammed . | . . . Distress Signals . | . . . Times Spotted 37 | . 30 7 Peak Tracking Total 5 | . 3 5 Tactical Retreats 3 | . 1 2 Traps | -11 -10 -10 ------- Run | Yrd Mat Min Traps Triggered 4 | . 4 . Indirectly . | . . . Trap Hack Attempts . | . . . Triggered . | . . . Disarmed 4 | . 4 . Reprogrammed . | . . . Reused . | . . . Traps Extracted . | . . . Installed . | . . . Triggered . | . . . Machines | -11 -10 -10 ---------- Run | Yrd Mat Min Machines Disabled 1 | . 1 . Max in Single Turn 1 | . 1 . Machines Repaired . | . . . Machines Dismantled . | . . . Machines Sabotaged . | . . . Overloaded Fab Kills . | . . . Hacking | -11 -10 -10 --------- Run | Yrd Mat Min Machines Accessed 10 | . 10 . Terminals 7 | . 7 . Fabricators . | . . . Repair Stations 1 | . 1 . Recycling Units 2 | . 2 . Scanalyzers . | . . . Garrison Access . | . . . Total Hacks 32 | . 32 . Successful 22 | . 22 . Failed 10 | . 10 . Catastrophic 1 | . 1 . Database Lockouts . | . . . Manual . | . . . Terminals 21 | . 21 . Fabricators . | . . . Repair Stations 8 | . 8 . Recycling Units 3 | . 3 . Scanalyzers . | . . . Garrison Access . | . . . Terminal Hacks 13 | . 13 . Record 4 | . 4 . Robot Analysis 3 | . 3 . Prototype ID Bank 1 | . 1 . Branch Access Points 1 | . 1 . Locate Traps 2 | . 2 . Disarm Traps 1 | . 1 . Hauler Manifests 1 | . 1 . Fabricator Hacks . | . . . Repair Station Hacks 7 | . 7 . Scan Component 4 | . 4 . Repair 3 | . 3 . Recycling Unit Hacks 2 | . 2 . Report Inventory 2 | . 2 . Scanalyzer . | . . . Garrison Access Hacks . | . . . Unauthorized Hacks . | . . . Terminals . | . . . Fabricators . | . . . Repair Stations . | . . . Recycling Units . | . . . Scanalyzers . | . . . Garrison Access . | . . . Data Cores Recovered . | . . . Used . | . . . Hacking Detections 7 | . 7 . Full Trace Events 1 | . 1 . Feedback Events . | . . . Feedback Blocked . | . . . Robot Schematics Acquired . | . . . Robots Built . | . . . Authchips . | . . . Time . | . . . Total Robot Build Rating . | . . . Part Schematics Acquired . | . . . Parts Built . | . . . Authchips . | . . . Time . | . . . Total Part Build Rating . | . . . Parts Repaired 3 | . 3 . Time 88 | . 88 . Parts Recycled . | . . . Recycled Matter . | . . . Retrieved Matter . | . . . Retrieved Components . | . . . Parts Scanalyzed . | . . . Part Schematics Acquired . | . . . Parts Damaged . | . . . Bothacking | -11 -10 -10 ------------ Run | Yrd Mat Min Used RIF Installer . | . . . Robots Hacked . | . . . Non-combat . | . . . Combat . | . . . Robot Hacks Applied . | . . . Relay Couplers Released . | . . . Fabnet Peak Effective % . | . . . Robots Rewired . | . . . Allies Hacked . | . . . Hacks Repelled . | . . . Allies | -11 -10 -10 -------- Run | Yrd Mat Min Total Allies . | . . . Largest Group . | . . . Highest-Rated Group . | . . . Highest-Rated Ally . | . . . Total Orders . | . . . Ally Attacks . | . . . Total Damage . | . . . Kills . | . . . Allies Corrupted . | . . . Allies Melted . | . . . Intel | -11 -10 -10 ------- Run | Yrd Mat Min Robot Analysis Total 3 | . 3 . Derelict Logs Recovered . | . . . Drone Launches . | . . . Drone Recoveries . | . . . Exploration | -11 -10 -10 ------------- Run | Yrd Mat Min Turns Passed 1911 | 98 1604 209 Spaces Moved 878 | 56 726 96 Core 5 | 4 1 . Treads 873 | 52 725 96 Legs . | . . . Wheels . | . . . Hover . | . . . Flight . | . . . Fastest Speed 50 | 50 160 160 Average Speed 159 | 152 160 160 Slowest Speed 300 | 160 300 160 Overloaded Moves . | . . . Propulsion Burnouts . | . . . Robots Hopped . | . . . Cave-ins Triggered . | . . . Exploration Rate (%) 42 | 4 98 26 Regions Visited 2 Branch Regions 1 Pre-discovered Areas . | . . . Known Exits Taken 1 | . 1 . Unknown Exits Taken 1 | 1 . . Scrap Searched 1 | . . 1 Spaces Dug . | . . . Terrain Destroyed 46 | . 18 28 Melee . | . . . Projectile . | . . . AOE 46 | . 18 28 Terrain Rammed . | . . . Walls Destroyed . | . . . Machines Disabled . | . . . Actions | -11 -10 -10 --------- Run | Yrd Mat Min Total 1242 | 69 1054 119 Wait 234 | . 234 . Move 876 | 55 725 96 Hop . | . . . Pick Up 28 | 8 20 . Fast Attach . | . . . Attach 22 | 6 12 4 Detach . | . . . Swap 6 | . 4 2 Drop . | . . . Fire 76 | . 59 17 Melee . | . . . Ram . | . . . Kick . | . . . Crush . | . . . Escape Stasis . | . . . Rewire . | . . . Trap . | . . . Miscellaneous . | . . . Route ------- -11/Scrapyard -10/Materials (discovered 5 exits: [*Mat x3] / *Min x2) -10/Mines (discovered 1 exit: [*Mat]) History --------- Turn | Location | Event 3 | -11/Scrapyard | Discovered new exit (range 15) 99 | -11/Scrapyard | Entered Materials 305 | -10/Materials | Build established: Mutant 317 | -10/Materials | Discovered new exit (range 12) 532 | -10/Materials | Discovered new exit (range 15) 764 | -10/Materials | Discovered new exit (range 9) 853 | -10/Materials | Repaired Lgt. Treads 891 | -10/Materials | Repaired Broken Lgt. Treads 919 | -10/Materials | Repaired EM Pulse Gun 1245 | -10/Materials | Discovered new exit (range 5) 1358 | -10/Materials | Discovered new exit (range 15) 1516 | -10/Materials | Identified exit to Mines 1703 | -10/Materials | Entered Mines 1758 | -10/Mines | Discovered new exit (range 8) 1869 | -10/Mines | Core integrity fell below 50% 1905 | -10/Mines | Core integrity fell below 20% 1912 | -10/Mines | Destroyed by YI-UF0 with YI-UF0's Doublenader Last Messages --------------- 01842_ Acquired 19 matter. 01868_ EM Pulse Gun destroyed. 01888_ YI-UF0 mumbles something. 01888_ Plasma Injector explodes. 01889_ The unstable cave ceiling collapses. 01892_ YI-UF0 mumbles something. 01892_ Lgt. Ion Engine destroyed. 01894_ Lgt. Treads destroyed. 01896_ The unstable cave ceiling collapses. 01898_ Grenade Launcher destroyed. 01899_ The unstable cave ceiling collapses. 01900_ R-06 Scavenger destroyed. 01902_ The unstable cave ceiling collapses. 01902_ Destroyed Shock Absorption System. 01904_ The unstable cave ceiling collapses. 01904_ Med. Laser destroyed. 01908_ The unstable cave ceiling collapses. 01908_ U-05 Engineer builds a Wall. 01911_ The unstable cave ceiling collapses. 01912_ Lgt. Treads destroyed. Map ----- +----------------------------------------------------+ | ??????????????????????????????????? | | ??????????????????????????????????? | | ??????????????????????????????????? | | ??????????????????????????????????? | | ??????????????????????????????????? | | ?????????????????????????? ?????? | | ?????????????????????????? #????? | | ?????????????????????????? #????? | | ????????????????????????## #????? | | ???????????????????????? #????? | | ??????????????????????? ?????? | | ????????????????????? ????? | | ?????????????????????? ????? | | ?????????????????????? #????? | | ??????????? = ???????? #????? | | ??????????? ?????? #????? | | ?????????? ???## #????? | | ????????? ### # #????? | | ????????? #????? | | ????????? *[ #????? | | ????????? ## ##???? | | ?????????????????????# g #???? | | ?????????????????????# # ##???? | | ????????????????????### ##??? | | ????????????????????# #??? | | ?????????????????????# @ #??? | | ????????????????????# #???? | | ????????????????????# #??? | | ????????????????????# #??? | | ????????????????????#; ##??? | | ???????????????????# ##???? | | ?????????????????? ????? | | ?????????????????## #???? | | ?????????????????? # #???? | | ?????????????????## ##???? | | ??????????????????# ##???? | | ?????????????????? #???? | | ?????????????????# % #???? | | ??????????????????#####u##### #???? | | ?????????????????????? #???# #???? | | ?????????????????????## #???# ###?? | | ??????????????????????# #???# #?? | | ???????# ????????????# #???### #?? | | ?????## ????????????# #?????# #?? | | ???## ???????????# ?????# #?? | | ???# ???????????? ?????# #?? | | ??# ???????????? ?????# #?? | | ??? #??????????? ?????# #?? | | ??? ###???????? ?????# #?? | | ????? ##??????? ?????#!#?? | +----------------------------------------------------+ Best States ------------- Heat Dissipation 25 Energy Generation 10 Energy Capacity 250 Matter Stores 300 Matter Capacity 300 Sight Range 16 Terrain Scan Density 10 Evasion (%) 40 Targeting Accuracy 5 Recoil Reduction 2 Item Schematics ----------------- None Robot Schematics ------------------ None Fabricated ------------ Nothing Alien Tech Used ----------------- None Achievements -------------- Armchair Analyst Challenges ------------ None Game ------ Seed VampiricSniperDiverter Manual? 0 Play Time 00:35:40 Cumulative 27.5 hours Start 2024.08.11 @ 02:44:54 End 2024.08.11 @ 03:43:56 Sessions 1 Manual Loads 0 Difficulty Rogue Special Mode None Game No. 23 Rogue 23 Adventurer 0 Explorer 0 Win Type - Total 0 Types 0/0/0/0/0/0/0/0/0 Lore% 10 Gallery% 17 Achievement% 19 Wizard Run 0 Options --------- Layout 1 ASCII 0 Keyboard 0 Movement Mouse Keybinds 0 Fullscreen 2 Font 48/Smallcaps Map View 50x35 Zoom Use 0% Tactical HUD 1 Map Filters NONE Filters NONE Steam 1 RUN: bc10663a-50c4-45d7-a472-a6d5703004ef